bitfinex/quotes_SOLUSD_20250706
["timestamp","ask_amount","ask_price","bid_price","bid_amount"]
[1751808416536,7.52584898,149.13,149.11,11.8097]
[1751808416739,7.52584898,149.17,149.11,11.8097]
[1751808416942,7.52584898,149.16,149.11,11.8097]
[1751808417145,7.52584898,149.15,149.09,0.2]
[1751808417455,7.52584898,149.14,149.09,0.2]
[1751808417637,7.52584898,149.13,149.09,0.2]
[1751808417838,7.52584898,149.12,149.09,0.2]
[1751808418047,16.10795877,149.16,149.09,0.2]
[1751808418365,7.52649977,149.15,149.09,0.2]
[1751808418567,7.52649977,149.14,149.09,0.2]
[1751808418860,7.52649977,149.13,149.09,0.2]
[1751808419064,7.52649977,149.12,149.09,0.2]
[1751808419254,7.52649977,149.15,149.09,0.2]
[1751808419442,7.52649977,149.14,149.09,0.2]
[1751808419639,7.52649977,149.13,149.09,0.2]
[1751808419858,7.52649977,149.12,149.09,0.2]
[1751808420056,7.52649977,149.14,149.09,0.2]
[1751808420261,7.52649977,149.13,149.09,0.2]
[1751808420565,7.52649977,149.12,149.09,0.2]
[1751808420770,7.52649977,149.14,149.09,0.2]
[1751808421064,7.52649977,149.13,149.09,0.2]
[1751808421243,7.52649977,149.14,149.11,26.0]
[1751808421567,7.52649977,149.13,149.11,26.0]
[1751808421764,6.70480938,149.15,149.11,26.0]
[1751808421765,7.52649977,149.14,149.11,26.0]
[1751808421953,7.52649977,149.13,149.11,26.0]
[1751808422147,7.52649977,149.14,149.11,26.0]
[1751808422355,7.52649977,149.13,149.11,12.0478]
[1751808422564,7.52649977,149.16,149.11,12.0478]
[1751808422758,7.52649977,149.15,149.11,12.0478]
[1751808422968,7.52649977,149.14,149.11,12.0478]
[1751808423155,7.52649977,149.17,149.11,12.0478]
[1751808423352,14.23077441,149.16,149.11,12.0478]
[1751808423561,7.52649977,149.15,149.11,12.0478]
[1751808423756,7.52649977,149.14,149.11,12.0478]
[1751808423953,7.52649977,149.15,149.11,18.75423541]
[1751808424160,7.52649977,149.14,149.11,18.75423541]
[1751808424371,7.52649977,149.15,149.11,18.75423541]
[1751808424573,7.52649977,149.14,149.11,12.0478]
[1751808424749,7.52649977,149.15,149.11,12.0478]
[1751808424945,7.52649977,149.14,149.11,12.0478]
[1751808425144,7.52649977,149.15,149.11,12.0478]
[1751808425359,7.52649977,149.14,149.11,12.0478]
[1751808425547,7.52649977,149.15,149.11,12.0478]
[1751808425869,7.52649977,149.14,149.11,12.0778]
[1751808426054,7.52649977,149.15,149.11,12.0778]
[1751808426371,7.52649977,149.14,149.11,12.0778]
[1751808427551,7.52649977,149.15,149.11,12.0778]
[1751808427758,7.52649977,149.14,149.11,12.0778]
[1751808427961,7.52649977,149.15,149.11,12.0778]
[1751808428159,7.52649977,149.14,149.11,12.0778]
[1751808428467,7.52649977,149.15,149.11,12.0778]
[1751808428671,7.52649977,149.14,149.11,12.0778]
[1751808428878,7.52649977,149.15,149.11,12.0778]
[1751808429076,7.52649977,149.14,149.11,12.0778]
[1751808429371,7.52649977,149.15,149.11,12.0778]
[1751808429553,7.52649977,149.14,149.11,12.0778]
[1751808429760,7.52649977,149.15,149.11,12.0778]
[1751808429959,7.52649977,149.14,149.11,12.0778]
[1751808430159,7.52649977,149.15,149.11,12.0778]
[1751808430474,7.52649977,149.14,149.11,2.4516]
[1751808430680,7.52649977,149.13,149.11,0.03]
[1751808430870,7.52649977,149.12,149.11,0.03]
[1751808431180,7.52649977,149.14,149.11,0.03]
[1751808431361,7.52649977,149.13,149.11,0.03]
[1751808431560,7.52649977,149.12,149.11,0.03]
[1751808431778,7.52649977,149.14,149.11,0.03]
[1751808431977,7.52649977,149.13,149.11,0.03]
[1751808432178,7.52649977,149.12,149.11,0.03]
[1751808432365,7.52649977,149.14,149.11,0.03]
[1751808432574,7.52649977,149.13,149.11,0.03]
[1751808432872,7.52649977,149.12,149.11,0.03]
[1751808433070,7.52649977,149.14,149.11,0.03]
[1751808433261,7.52649977,149.13,149.11,0.03]
[1751808433464,7.52649977,149.12,149.11,0.03]
[1751808433668,7.52649977,149.14,149.11,0.03]
[1751808433860,7.52649977,149.13,149.11,0.03]
[1751808434066,7.52649977,149.15,149.11,0.03]
[1751808434267,7.52649977,149.14,149.11,0.03]
[1751808434466,7.52649977,149.13,149.11,0.03]
[1751808434683,7.52649977,149.16,149.11,0.03]
[1751808434868,7.52649977,149.15,149.11,0.03]
[1751808435181,7.52649977,149.14,149.11,0.03]
[1751808435386,7.52649977,149.13,149.11,0.03]
[1751808435567,7.52649977,149.15,149.11,0.03]
[1751808435884,6.70435413,149.16,149.11,0.03]
[1751808435885,7.52649977,149.14,149.11,0.03]
[1751808436054,7.52649977,149.15,149.11,0.03]
[1751808436255,7.52649977,149.14,149.11,0.03]
[1751808436515,6.70435413,149.16,149.11,0.03]
[1751808436516,7.52649977,149.15,149.11,0.03]
[1751808436693,7.52649977,149.14,149.11,0.03]
[1751808436866,7.52649977,149.15,149.11,0.03]
[1751808437062,7.52649977,149.14,149.11,0.03]
[1751808437259,7.52649977,149.13,149.11,0.03]
[1751808437477,7.52649977,149.16,149.11,0.03]
[1751808437783,7.52649977,149.15,149.11,0.03]
[1751808437962,7.52649977,149.14,149.11,0.03]
[1751808438279,7.52649977,149.16,149.11,0.03]
[1751808438472,7.52649977,149.15,149.11,0.03]
[1751808438774,7.52649977,149.14,149.11,0.03]
[1751808438977,7.52649977,149.16,149.11,0.03]
[1751808439196,7.52649977,149.15,149.11,0.03]
[1751808439485,7.52649977,149.14,149.11,0.03]
[1751808439660,7.52649977,149.13,149.11,0.03]
[1751808439864,6.76347309,149.18,149.11,0.03]
[1751808439865,7.52649977,149.16,149.11,0.03]
[1751808440074,7.52649977,149.15,149.11,0.03]
[1751808440381,7.52649977,149.14,149.11,0.03]
[1751808440566,7.52649977,149.17,149.11,0.03]
[1751808440769,7.52649977,149.16,149.11,0.03]
[1751808440979,7.52649977,149.15,149.11,0.03]
[1751808441162,7.52649977,149.14,149.11,0.03]
[1751808441356,7.52649977,149.17,149.11,0.03]
[1751808441563,7.52649977,149.16,149.11,0.03]
[1751808441780,7.52649977,149.15,149.11,0.03]
[1751808441971,7.52649977,149.14,149.11,0.03]
[1751808442162,7.52649977,149.17,149.11,0.03]
[1751808442363,7.52649977,149.16,149.11,0.03]
[1751808442573,7.52649977,149.15,149.11,0.03]
[1751808442782,7.52649977,149.14,149.11,0.03]
[1751808442989,7.52649977,149.17,149.11,0.03]
[1751808443190,7.52649977,149.16,149.11,0.03]
[1751808443487,16.16709616,149.18,149.11,0.03]
[1751808443488,7.52649977,149.15,149.11,0.03]
[1751808443688,7.52649977,149.14,149.11,0.03]
[1751808443890,7.52649977,149.17,149.11,0.03]
[1751808444083,7.52649977,149.16,149.11,0.03]
[1751808444275,7.52649977,149.15,149.11,0.03]
[1751808444590,7.52649977,149.14,149.11,0.03]
[1751808444897,16.16709616,149.18,149.11,0.03]
[1751808444898,7.52311039,149.17,149.11,0.03]
[1751808445070,7.52311039,149.16,149.11,0.03]
[1751808445270,7.52311039,149.15,149.11,0.03]
[1751808445597,7.52311039,149.14,149.11,0.03]
[1751808445777,7.52311039,149.17,149.11,0.03]
[1751808445980,7.52311039,149.16,149.11,0.03]
[1751808446192,7.52311039,149.15,149.11,0.03]
[1751808446403,7.52311039,149.14,149.11,0.03]
[1751808446696,9.46362307,149.18,149.11,0.03]
[1751808446996,7.52573135,149.17,149.11,0.03]
[1751808447200,7.52573135,149.16,149.11,0.03]
[1751808447496,7.52573135,149.15,149.11,0.03]
[1751808447794,7.52573135,149.14,149.11,0.03]
[1751808447992,9.46362307,149.18,149.11,0.03]
[1751808448175,7.52731933,149.17,149.11,0.03]
[1751808448488,7.52731933,149.16,149.11,0.03]
[1751808448693,7.52731933,149.15,149.11,0.03]
[1751808448868,7.52731933,149.14,149.11,0.03]
[1751808449069,7.52731933,149.13,149.11,0.03]
[1751808449287,7.52731933,149.12,149.11,0.03]
[1751808456716,7.52731933,149.15,149.11,26.03]
[1751808456915,7.52731933,149.14,149.11,26.03]
[1751808457092,7.52731933,149.13,149.11,26.03]
[1751808457290,9.40362307,149.17,149.11,26.03]
[1751808457607,7.53267748,149.16,149.11,26.03]
[1751808457914,7.53267748,149.15,149.11,26.03]
[1751808458100,7.53267748,149.14,149.11,26.03]
[1751808458302,7.53267748,149.13,149.12,6.70600858]
[1751808458809,9.46362307,149.18,149.12,6.70600858]
[1751808458987,7.53295193,149.17,149.12,6.70600858]
[1751808459187,7.53295193,149.16,149.12,6.70600858]
[1751808459394,7.53295193,149.15,149.12,6.70600858]
[1751808459607,7.53295193,149.14,149.12,6.70600858]
[1751808459909,7.53295193,149.13,149.12,6.70600858]
[1751808460605,9.46362307,149.18,149.12,6.70600858]
[1751808460813,16.93657413,149.17,149.12,6.70600858]
[1751808461016,7.53295106,149.16,149.12,6.70600858]
[1751808461202,7.53295106,149.15,149.12,6.70600858]
[1751808461395,7.53295106,149.14,149.12,6.70600858]
[1751808461716,7.53295106,149.13,149.12,6.70600858]
[1751808463702,9.46362307,149.18,149.12,6.70600858]
[1751808463916,7.53300773,149.17,149.12,6.70600858]
[1751808464118,7.53300773,149.16,149.12,6.70600858]
[1751808464305,7.53300773,149.15,149.12,6.70600858]
[1751808464509,7.53300773,149.14,149.12,6.70600858]
[1751808464719,9.46362307,149.18,149.12,6.70600858]
[1751808464920,7.53266116,149.17,149.12,6.70600858]
[1751808465123,7.53266116,149.16,149.12,6.70600858]
[1751808465309,9.46362307,149.18,149.12,6.70600858]
[1751808465310,7.53266116,149.15,149.12,6.70600858]
[1751808465618,7.53266116,149.14,149.12,6.70600858]
[1751808465820,9.46362307,149.18,149.12,6.70600858]
[1751808466022,7.53241881,149.17,149.12,6.70600858]
[1751808466225,7.53241881,149.16,149.12,6.70600858]
[1751808466424,7.53241881,149.15,149.12,6.70600858]
[1751808466602,7.53241881,149.14,149.12,6.70600858]
[1751808466800,7.53144475,149.17,149.13,11.4991]
[1751808467023,7.53144475,149.16,149.13,11.4991]
[1751808467213,7.53144475,149.15,149.13,11.4991]
[1751808467407,0.06,149.18,149.13,11.4991]
[1751808467622,7.5301155,149.17,149.13,11.4991]
[1751808467926,7.5301155,149.16,149.13,11.4991]
[1751808468128,7.5301155,149.15,149.13,11.4991]
[1751808468429,0.06,149.18,149.14,23.46788252]
[1751808468723,7.52897671,149.17,149.16,26.0]
[1751808469626,0.06,149.18,149.16,26.0]
[1751808470127,0.06,149.18,149.17,26.0]
[1751808470297,0.06,149.18,149.17,32.7037608]
[1751808474074,0.06,149.18,149.17,51.35340966]
[1751808475929,0.06,149.24,149.19,2.224]
[1751808476233,0.06,149.24,149.2,26.0]
[1751808476616,0.06,149.24,149.22,26.0]
[1751808477534,0.06,149.24,149.23,6.70106546]
[1751808502348,0.06,149.24,149.22,26.0]
[1751808502854,0.06,149.24,149.18,0.03]
[1751808503048,90.7478,149.23,149.18,0.03]
[1751808504090,7.47846131,149.22,149.18,6.73322954]
[1751808505858,7.47846131,149.22,149.18,23.49150812]
[1751808507975,0.06,149.24,149.18,23.49150812]
[1751808508160,7.53846131,149.24,149.18,23.49150812]
[1751808508482,7.47846131,149.23,149.18,23.49150812]
[1751808508677,0.06,149.24,149.18,23.49150812]
[1751808508997,7.47846131,149.23,149.18,23.49150812]
[1751808509587,0.06,149.24,149.21,26.0]
[1751808510885,7.53846131,149.24,149.22,6.70151454]
[1751808511177,0.06,149.24,149.22,6.70151454]
[1751808512994,7.53846131,149.24,149.22,6.70151454]
[1751808513156,0.06,149.24,149.22,6.70151454]
[1751808513352,0.06,149.24,149.23,7.0781667]
[1751808513556,0.06,149.24,149.23,33.0781667]
[1751808514462,0.06,149.24,149.23,39.77923216]
[1751808521677,7.50950549,149.29,149.26,32.69949414]
[1751808521884,7.0781667,149.3,149.26,32.69949414]
[1751808522064,7.50950549,149.29,149.26,32.69949414]
[1751808522268,7.50950549,149.28,149.26,32.69949414]
[1751808522469,7.50950549,149.29,149.26,32.69949414]
[1751808522679,7.50950549,149.28,149.26,32.69949414]
[1751808522879,7.50950549,149.29,149.26,32.69949414]
[1751808523079,7.50950549,149.28,149.26,32.69949414]
[1751808523380,7.50950549,149.29,149.26,32.69949414]
[1751808523587,7.50950549,149.28,149.26,32.69949414]
[1751808523762,7.50950549,149.29,149.26,32.69949414]
[1751808523958,7.50950549,149.28,149.26,32.69949414]
[1751808524191,7.50950549,149.29,149.26,32.69949414]
[1751808524399,7.50950549,149.28,149.26,32.69949414]
[1751808524559,14.58767219,149.29,149.25,6.70002236]
[1751808524766,7.0781667,149.27,149.25,32.70002236]
[1751808524982,14.58767219,149.27,149.25,6.70002236]
[1751808525179,7.0781667,149.27,149.25,6.70002236]
[1751808525973,14.58558145,149.27,149.25,6.70002236]
[1751808526175,7.0781667,149.27,149.25,6.70002236]
[1751808526485,7.0781667,149.27,149.24,6.70061645]
[1751808526684,7.0781667,149.28,149.24,6.70061645]
[1751808526888,7.50736369,149.27,149.24,6.70061645]
[1751808527481,7.0781667,149.29,149.24,6.70061645]
[1751808527694,7.50693282,149.28,149.24,6.70061645]
[1751808527998,7.50693282,149.27,149.24,6.70061645]
[1751808528163,7.50693282,149.28,149.24,6.70061645]
[1751808528364,7.50693282,149.27,149.24,6.70061645]
[1751808528694,7.50693282,149.28,149.24,6.70061645]
[1751808529089,7.50693282,149.27,149.24,6.70061645]
[1751808529294,7.50693282,149.28,149.24,6.70061645]
[1751808529500,7.50693282,149.27,149.24,6.70061645]
[1751808529691,7.50693282,149.28,149.24,6.70061645]
[1751808529893,7.50693282,149.27,149.24,6.70061645]
[1751808530077,7.50693282,149.28,149.24,6.70061645]
[1751808531606,7.50693282,149.27,149.24,6.70061645]
[1751808531804,7.50693282,149.28,149.24,6.70061645]
[1751808531979,7.50693282,149.27,149.24,6.70061645]
[1751808532181,7.50693282,149.28,149.23,23.45372913]
[1751808532380,7.50693282,149.27,149.23,30.53189583]
[1751808532578,7.50693282,149.28,149.23,30.53189583]
[1751808532777,7.50693282,149.27,149.23,6.70106546]
[1751808533080,14.58509952,149.27,149.23,6.70106546]
[1751808533274,7.0781667,149.27,149.23,6.70106546]
[1751808534584,6.69843772,149.29,149.22,26.0]
[1751808534585,7.0781667,149.25,149.22,32.70150206]
[1751808534776,14.58544427,149.25,149.22,32.70150206]
[1751808534982,7.0781667,149.26,149.22,32.70150206]
[1751808535196,7.50770519,149.25,149.22,32.70150206]
[1751808536281,7.0781667,149.26,149.22,32.70150206]
[1751808536496,7.50770519,149.25,149.22,32.70150206]
[1751808538695,7.0781667,149.26,149.22,32.70150206]
[1751808538890,14.58580342,149.27,149.22,32.70150206]
[1751808539097,7.50763672,149.26,149.22,32.70150206]
[1751808539774,7.0781667,149.26,149.22,32.73150206]
[1751808539992,14.58580342,149.26,149.22,32.73150206]
[1751808540196,7.0781667,149.26,149.22,32.73150206]
[1751808540696,14.58548043,149.26,149.22,32.73150206]
[1751808542106,7.50731373,149.25,149.22,32.73150206]
[1751808543587,14.58548043,149.25,149.22,32.73150206]
[1751808543791,7.0781667,149.25,149.22,32.73150206]
[1751808544113,14.58603361,149.26,149.22,32.73150206]
[1751808544404,7.50786691,149.25,149.22,32.73150206]
[1751808546707,14.58603361,149.26,149.22,32.73150206]
[1751808546993,0.06,149.27,149.25,33.0781667]
[1751808547216,0.06,149.27,149.26,7.0781667]
[1751808547514,1e-08,149.27,149.26,7.0781667]
[1751808547898,1e-08,149.27,149.26,25.72781556]
[1751808548299,7.60655766,149.33,149.3,26.0]
[1751808548489,0.1,149.33,149.32,7.0781667]
[1751808548899,0.1,149.33,149.32,13.77519322]
[1751808549699,9.48468035,149.39,149.32,49.16740838]
[1751808549700,7.49795124,149.37,149.32,49.16740838]
[1751808549900,0.1,149.39,149.36,44.64964886]
[1751808550104,0.1,149.39,149.38,7.0781667]
[1751808550307,0.1,149.39,149.36,26.0]
[1751808551005,0.1,149.39,149.37,6.69478476]
[1751808551315,0.1,149.39,149.36,32.69511526]
[1751808551523,0.1,149.39,149.36,6.69511526]
[1751808552493,7.1781667,149.39,149.36,6.69511526]
[1751808552697,7.1781667,149.39,149.36,32.69511526]
[1751808553099,0.1,149.39,149.36,32.69511526]
[1751808554921,7.1781667,149.39,149.36,32.69511526]
[1751808555309,0.1,149.39,149.36,32.69511526]
[1751808556221,0.1,149.39,149.36,39.77328196]
[1751808556805,0.1,149.39,149.36,32.69511526]
[1751808557121,0.1,149.39,149.36,39.77328196]
[1751808557315,0.1,149.39,149.36,32.69511526]
[1751808558020,0.1,149.39,149.36,39.77328196]
[1751808558204,0.1,149.39,149.36,32.69511526]
[1751808560427,0.1,149.39,149.37,7.0781667]
[1751808560736,0.1,149.39,149.36,49.43319774]
[1751808560911,0.1,149.39,149.36,56.51136444]
[1751808561836,0.1,149.39,149.36,49.43319774]
[1751808562536,0.1,149.39,149.36,32.69511526]
[1751808564128,0.1,149.39,149.36,32.72511526]
[1751808565334,0.1,149.39,149.36,39.80328196]
[1751808565519,0.1,149.39,149.36,32.72511526]
[1751808566918,0.1,149.39,149.36,39.80328196]
[1751808567625,0.1,149.39,149.36,32.72511526]
[1751808568852,7.1781667,149.39,149.36,0.03]
[1751808569030,0.1,149.39,149.36,0.03]
[1751808569348,7.0781667,149.38,149.36,0.03]
[1751808569538,7.0781667,149.37,149.36,0.03]
[1751808569720,0.1,149.39,149.36,0.03]
[1751808569919,7.0781667,149.37,149.36,0.03]
[1751808571055,0.1,149.39,149.36,0.03]
[1751808572727,0.1,149.39,149.36,6.72523299]
[1751808573726,0.1,149.39,149.36,13.80339969]
[1751808574134,0.1,149.39,149.36,30.54148217]
[1751808574335,0.1,149.39,149.38,7.0781667]
[1751808575849,0.1,149.39,149.38,13.77250329]
[1751808576055,1e-08,149.39,149.38,41.98885215]
[1751808576937,1e-08,149.39,149.38,23.33920329]
[1751808577141,1e-08,149.39,149.38,32.69433659]
[1751808578750,1e-08,149.39,149.38,39.77250329]
[1751808578951,1e-08,149.42,149.41,26.0]
[1751808579122,1e-08,149.42,149.41,42.6448667]
[1751808579324,1e-08,149.42,149.41,61.29451556]
[1751808579547,1e-08,149.42,149.41,54.21634886]
[1751808579751,1e-08,149.42,149.41,60.90934129]
[1751808580054,1e-08,149.42,149.41,67.98750799]
[1751808580546,1e-08,149.42,149.41,60.90934129]
[1751808580748,1e-08,149.42,149.41,42.25969243]
[1751808580949,1e-08,149.42,149.41,32.69299243]
[1751808581348,1e-08,149.42,149.41,51.34264129]
[1751808581558,1e-08,149.42,149.41,58.42080799]
[1751808582539,1e-08,149.42,149.41,51.34264129]
[1751808582736,1e-08,149.42,149.41,58.42080799]
[1751808583150,1e-08,149.42,149.41,51.34264129]
[1751808583552,1e-08,149.42,149.41,58.42080799]
[1751808584257,1e-08,149.42,149.41,51.34264129]
[1751808584454,1e-08,149.42,149.41,58.42080799]
[1751808586361,0.1,149.54,149.46,26.0]
[1751808586537,0.1,149.54,149.53,32.68762121]
[1751808586740,1.4068093,149.6,149.55,26.0]
[1751808587063,1.4068093,149.6,149.58,7.0781667]
[1751808587246,1.4068093,149.6,149.57,7.0781667]
[1751808587566,1.4068093,149.6,149.56,26.0]
[1751808587740,1.4068093,149.6,149.57,7.0781667]
[1751808587939,1.4068093,149.6,149.58,7.0781667]
[1751808588153,1.4068093,149.6,149.59,33.0781667]
[1751808588354,1.4068093,149.6,149.59,26.0]
[1751808588559,1.4068093,149.6,149.59,32.68493883]
[1751808589258,1.4068093,149.6,149.58,26.0]
[1751808589460,1.4068093,149.6,149.59,6.68493883]
[1751808589660,1.4068093,149.6,149.58,32.68530466]
[1751808589866,1.4068093,149.6,149.56,43.95597288]
[1751808590162,1.4068093,149.6,149.56,32.6859117]
[1751808590546,1.4068093,149.6,149.59,6.68493883]
[1751808591142,1.4068093,149.6,149.59,32.68493883]
[1751808591349,1e-08,149.6,149.59,25.33458769]
[1751808591846,1e-08,149.6,149.59,36.60464887]
[1751808592046,1e-08,149.6,149.59,25.33458769]
[1751808592450,1e-08,149.6,149.59,17.95500001]
[1751808592644,1e-08,149.6,149.59,43.95500001]
[1751808592844,1e-08,149.6,149.59,32.68493883]
[1751808594670,1e-08,149.6,149.59,43.95500001]
[1751808594850,1e-08,149.6,149.59,62.60464887]
[1751808595753,1e-08,149.6,149.59,51.33458769]
[1751808596069,1e-08,149.6,149.59,36.60464887]
[1751808596581,1e-08,149.6,149.59,25.33458769]
[1751808596942,1e-08,149.6,149.59,36.60464887]
[1751808597147,1e-08,149.6,149.59,25.33458769]
[1751808597372,1e-08,149.6,149.59,36.60464887]
[1751808598856,1e-08,149.6,149.59,25.33458769]
[1751808599053,1e-08,149.6,149.59,36.60464887]
[1751808599254,1e-08,149.6,149.59,25.33458769]
[1751808599861,1e-08,149.6,149.59,36.60464887]
[1751808600057,1e-08,149.6,149.59,25.33458769]
[1751808600263,1e-08,149.6,149.59,36.60464887]
[1751808600571,1e-08,149.6,149.59,85.52024887]
[1751808600972,4.86251707,149.72,149.63,44.64964886]
[1751808601156,11.27006118,149.68,149.63,26.0]
[1751808601359,2.366,149.69,149.62,26.0]
[1751808601703,11.27006118,149.63,149.56,164.71986444]
[1751808601978,18.64964886,149.67,149.56,164.71986444]
[1751808602159,7.39311429,149.66,149.56,171.40602626]
[1751808602362,11.27006118,149.59,149.56,164.71986444]
[1751808602557,2.2813,149.61,149.56,171.40597335]
[1751808602772,11.27006118,149.59,149.56,164.71986444]
[1751808602974,11.27006118,149.58,149.56,164.71986444]
[1751808603175,2.2813,149.61,149.56,171.40611281]
[1751808603355,11.27006118,149.59,149.56,171.40611281]
[1751808603670,34.22366853,149.72,149.58,9.068]
[1751808603856,17.15620086,149.71,149.58,9.068]
[1751808604060,11.27006118,149.68,149.61,37.27006118]
[1751808604360,11.27006118,149.68,149.63,6.68315177]
[1751808604561,2.2813,149.7,149.63,6.68315177]
[1751808604861,11.27006118,149.69,149.63,17.95321295]
[1751808605259,2.2813,149.7,149.63,34.66109238]
[1751808605975,2.2813,149.7,149.63,23.3910312]
[1751808606180,2.2813,149.7,149.63,6.68315177]
[1751808606363,4.86251707,149.72,149.68,6.68091929]
[1751808608568,4.86251707,149.72,149.68,23.38321752]
[1751808609279,1e-08,149.72,149.71,11.27006118]
[1751808610587,1e-08,149.72,149.71,17.9496417]
[1751808610890,1e-08,149.72,149.69,32.68047297]
[1751808611462,0.06000001,149.72,149.69,6.68047297]
[1751808611663,0.06000001,149.72,149.69,32.68047297]
[1751808612198,0.06000001,149.72,149.69,6.68047297]
[1751808612683,0.06000001,149.72,149.7,11.27006118]
[1751808612899,0.06000001,149.72,149.71,11.27006118]
[1751808613677,0.06000001,149.72,149.69,18.64964886]
[1751808613881,0.06000001,149.72,149.7,11.27006118]
[1751808614185,0.06000001,149.72,149.71,11.27006118]
[1751808614491,0.06000001,149.72,149.7,17.9500879]
[1751808614976,0.06000001,149.72,149.71,11.27006118]
[1751808615298,0.06000001,149.72,149.7,6.68002672]
[1751808615696,0.06000001,149.72,149.7,17.9500879]
[1751808616261,0.06000001,149.72,149.7,6.68002672]
[1751808617688,0.06000001,149.72,149.71,11.27006118]
[1751808617889,0.06000001,149.72,149.71,37.27006118]
[1751808618696,0.06000001,149.72,149.71,32.67958052]
[1751808618870,0.06000001,149.72,149.71,43.9496417]
[1751808619471,0.06000001,149.72,149.71,32.67958052]
[1751808620092,0.06000001,149.72,149.71,43.9496417]
[1751808623892,0.06000001,149.72,149.71,32.67958052]
[1751808624090,0.06000001,149.72,149.71,43.9496417]
[1751808624293,1e-08,149.72,149.71,81.3096417]
[1751808624900,1e-08,149.72,149.71,73.95929056]
[1751808625995,1e-08,149.72,149.71,76.35779056]
[1751808626199,0.1,149.75,149.74,44.64964886]
[1751808626200,1e-08,149.75,149.74,44.64964886]
[1751808626379,1e-08,149.75,149.74,102.42991004]
[1751808626997,1e-08,149.75,149.74,109.10815232]
[1751808627200,2.3725,149.88,149.78,26.0]
[1751808627404,2.3725,149.88,149.79,37.5]
[1751808627796,11.27006118,149.87,149.81,11.27006118]
[1751808628101,2.3725,149.88,149.79,26.0]
[1751808628280,11.27006118,149.83,149.78,26.0]
[1751808628478,1.3725,149.88,149.74,41.08404799]
[1751808628676,11.27006118,149.8,149.74,15.27824228]
[1751808628891,11.27006118,149.77,149.71,11.27006118]
[1751808629209,6.67556742,149.8,149.7,11.27006118]
[1751808629423,6.67556742,149.8,149.69,6.68047297]
[1751808629621,11.27006118,149.75,149.69,17.95053415]
[1751808629928,6.17556742,149.8,149.69,43.95053415]
[1751808630095,11.27006118,149.75,149.69,32.68047297]
[1751808630412,11.27006118,149.75,149.69,17.95053415]
[1751808630609,10.77006118,149.75,149.69,6.68047297]
[1751808630921,10.77006118,149.75,149.69,17.45053415]
[1751808631314,9.04961858,149.77,149.69,6.18047297]
[1751808631614,9.04961858,149.77,149.69,16.95053415]
[1751808631804,11.27006118,149.76,149.7,10.77006118]
[1751808631980,11.27006118,149.76,149.69,5.68047297]
[1751808632186,11.27006118,149.76,149.7,11.27006118]
[1751808632390,11.27006118,149.76,149.7,17.4497876]
[1751808632790,11.27006118,149.76,149.7,17.9497876]
[1751808633390,2.3725,149.77,149.71,26.0]
[1751808633694,2.3725,149.77,149.71,37.27006118]
[1751808633695,13.64256118,149.77,149.71,37.27006118]
[1751808633902,20.31950174,149.77,149.71,37.27006118]
[1751808634101,13.64256118,149.77,149.71,26.5]
[1751808634301,2.3725,149.77,149.72,11.27006118]
[1751808634504,2.3725,149.77,149.73,6.6786883]
[1751808635102,2.3725,149.77,149.72,17.94908836]
[1751808635103,13.64256118,149.77,149.72,17.94908836]
[1751808635414,11.27006118,149.85,149.76,37.27006118]
[1751808635586,11.27006118,149.84,149.77,26.0]
[1751808635787,11.27006118,149.84,149.79,11.27006118]
[1751808635995,11.27006118,149.85,149.79,11.27006118]
[1751808636303,18.28790569,149.86,149.79,11.27006118]
[1751808636492,18.28790569,149.86,149.78,6.6764588]
[1751808636694,18.28790569,149.86,149.78,17.94651998]
[1751808636892,18.28790569,149.86,149.79,11.27006118]
[1751808637208,11.27006118,149.85,149.79,11.27006118]
[1751808637386,18.28790569,149.86,149.8,6.67556742]
[1751808637583,11.27006118,149.83,149.8,6.67556742]
[1751808637793,11.27006118,149.83,149.78,6.6764588]
[1751808638190,18.28790569,149.86,149.78,6.6764588]
[1751808638384,11.27006118,149.83,149.78,6.6764588]
[1751808638684,11.27006118,149.82,149.78,6.6764588]
[1751808638889,6.67389618,149.84,149.78,6.6764588]
[1751808639101,11.6149,149.86,149.79,11.27006118]
[1751808639701,11.6149,149.86,149.8,11.27006118]
[1751808640101,11.27006118,149.86,149.8,11.27006118]
[1751808641118,11.27006118,149.86,149.81,6.67512182]